fUST/lending_fUST_20251208
["ID","MTS","AMOUNT","RATE_DAILY","PERIOD"]
[397228082,1765158651371,-734.66,9.327e-05,2]
[397228084,1765158651380,-1200.59,9.327e-05,2]
[397228086,1765158651389,-500.0,9.327e-05,2]
[397228088,1765158651398,-500.0,9.327e-05,2]
[397228090,1765158651407,-500.0,9.327e-05,2]
[397228092,1765158651416,-500.0,9.327e-05,2]
[397228094,1765158651425,-500.0,9.327e-05,2]
[397228096,1765158651434,-500.0,9.327e-05,2]
[397228098,1765158651443,-500.0,9.327e-05,2]
[397228100,1765158651453,-763.11,9.327e-05,2]
[397228102,1765158651462,-500.0,9.327e-05,2]
[397228104,1765158651470,-1674.81,9.327e-05,2]
[397228106,1765158651479,-716.98,9.327e-05,2]
[397228108,1765158651488,-1523.83,9.327e-05,2]
[397228110,1765158651497,-1322.71,9.327e-05,2]
[397228112,1765158651506,-292.24822337,9.327e-05,2]
[397228114,1765158651515,-500.0,9.327e-05,2]
[397228116,1765158651523,-707.39,9.327e-05,2]
[397228118,1765158651532,-500.0,9.327e-05,2]
[397228120,1765158651542,-500.0,9.327e-05,2]
[397228122,1765158651552,-548.97,9.327e-05,2]
[397228124,1765158651561,-813.66,9.327e-05,2]
[397228126,1765158651570,-500.0,9.327e-05,2]
[397228128,1765158651579,-714.73,9.327e-05,2]
[397228130,1765158651587,-500.0,9.327e-05,2]
[397228132,1765158651596,-753.32,9.327e-05,2]
[397228134,1765158651608,-1100.78,9.327e-05,2]
[397228136,1765158651616,-500.0,9.327e-05,2]
[397228138,1765158651624,-2786.35,9.327e-05,2]
[397228139,1765158651635,-1107.72,9.327e-05,2]
[397228141,1765158651645,-826.62,9.327e-05,2]
[397228143,1765158651654,-1135.64,9.327e-05,2]
[397228145,1765158651663,-987.51,9.327e-05,2]
[397228147,1765158651672,-500.0,9.327e-05,2]
[397228149,1765158651682,-500.0,9.327e-05,2]
[397228151,1765158651691,-1126.71,9.327e-05,2]
[397228153,1765158651702,-500.0,9.327e-05,2]
[397228155,1765158651711,-500.0,9.327e-05,2]
[397228157,1765158651720,-1012.76,9.327e-05,2]
[397228159,1765158651728,-500.0,9.327e-05,2]
[397228161,1765158651737,-503.61,9.327e-05,2]
[397228163,1765158651746,-500.0,9.328e-05,2]
[397228165,1765158651755,-226.98850169,9.328e-05,2]
[397228167,1765158651764,-499.43241626,9.376e-05,2]
[397228169,1765158651774,-500.0,9.376e-05,2]
[397228171,1765158651784,-500.0,9.376e-05,2]
[397228173,1765158651795,-500.0,9.376e-05,2]
[397228175,1765158651804,-501.63053432,9.376e-05,2]
[397228176,1765158651813,-500.0,9.376e-05,2]
[397228177,1765158651824,-558.19916787,9.376e-05,2]
[397228178,1765158651833,-500.0,9.376e-05,2]
[397228179,1765158651842,-500.0,9.376e-05,2]
[397228180,1765158651850,-500.88291152,9.376e-05,2]
[397228181,1765158651860,-500.0,9.376e-05,2]
[397228182,1765158651869,-500.96589903,9.376e-05,2]
[397228183,1765158651877,-558.92,9.376e-05,2]
[397228184,1765158651886,-753.58,9.376e-05,2]
[397228185,1765158651895,-500.0,9.376e-05,2]
[397228186,1765158651905,-1749.12,9.376e-05,2]
[397228187,1765158651914,-550.02,9.376e-05,2]
[397228188,1765158651923,-500.0,9.376e-05,2]
[397228189,1765158651932,-500.0,9.376e-05,2]
[397228190,1765158651941,-500.0,9.376e-05,2]
[397228191,1765158651951,-599.24,9.376e-05,2]
[397228192,1765158651967,-500.0,9.376e-05,2]
[397228193,1765158651977,-916.33,9.376e-05,2]
[397228194,1765158651986,-902.58,9.376e-05,2]
[397228195,1765158651995,-500.0,9.376e-05,2]
[397228196,1765158652004,-502.04796821,9.376e-05,2]
[397228197,1765158652013,-500.0,9.376e-05,2]
[397228198,1765158652023,-294.63595455,9.376e-05,2]
[397228199,1765158652032,-474.92475817,9.376e-05,2]
[397228201,1765158652043,-500.0,9.376e-05,2]
[397228203,1765158652054,-507.53,9.376e-05,2]
[397228205,1765158652064,-500.0,9.376e-05,2]
[397228207,1765158652074,-1719.01,9.376e-05,2]
[397228209,1765158652084,-1074.91,9.376e-05,2]
[397228211,1765158652094,-1062.05,9.376e-05,2]
[397228213,1765158652104,-3189.83,9.376e-05,2]
[397228215,1765158652114,-513.16,9.376e-05,2]
[397228217,1765158652125,-500.0,9.377e-05,2]
[397228218,1765158652137,-659.47,9.377e-05,2]
[397228221,1765158652147,-507.61374281,9.377e-05,2]
[397228223,1765158652157,-500.0,9.377e-05,2]
[397228224,1765158652168,-500.0,9.377e-05,2]
[397228243,1765158652341,-584.49,9.377e-05,2]
[397228245,1765158652352,-500.0,9.377e-05,2]
[397228247,1765158652363,-500.0,9.377e-05,2]
[397228250,1765158652374,-795.19,9.377e-05,2]
[397228252,1765158652384,-749.25,9.377e-05,2]
[397228253,1765158652394,-500.0,9.377e-05,2]
[397228255,1765158652404,-500.0,9.377e-05,2]
[397228257,1765158652414,-513.48,9.377e-05,2]
[397228259,1765158652424,-500.0,9.377e-05,2]
[397228261,1765158652434,-1172.3,9.377e-05,2]
[397228264,1765158652444,-500.0,9.377e-05,2]
[397228266,1765158652460,-500.0,9.377e-05,2]
[397228268,1765158652478,-500.0,9.377e-05,2]
[397228270,1765158652489,-500.0,9.377e-05,2]
[397228272,1765158652499,-500.0,9.377e-05,2]
[397228273,1765158652510,-989.17,9.377e-05,2]
[397228276,1765158652521,-500.0,9.377e-05,2]
[397228278,1765158652531,-664.32,9.377e-05,2]
[397228279,1765158652541,-500.0,9.377e-05,2]
[397228281,1765158652550,-500.0,9.377e-05,2]
[397228284,1765158652561,-853.09,9.377e-05,2]
[397228286,1765158652571,-500.0,9.377e-05,2]
[397228288,1765158652580,-500.0,9.377e-05,2]
[397228289,1765158652589,-500.0,9.377e-05,2]
[397228292,1765158652599,-501.222323,9.377e-05,2]
[397228293,1765158652608,-1152.98,9.377e-05,2]
[397228295,1765158652617,-946.71,9.377e-05,2]
[397228297,1765158652627,-501.65329931,9.377e-05,2]
[397228299,1765158652636,-500.0,9.377e-05,2]
[397228301,1765158652646,-500.0,9.377e-05,2]
[397228303,1765158652657,-501.5366457,9.377e-05,2]
[397228305,1765158652667,-500.0,9.377e-05,2]
[397228308,1765158652677,-500.0,9.377e-05,2]
[397228310,1765158652687,-652.47,9.377e-05,2]
[397228311,1765158652696,-823.61,9.377e-05,2]
[397228313,1765158652706,-502.03993881,9.377e-05,2]
[397228315,1765158652715,-569.32,9.377e-05,2]
[397228317,1765158652725,-554.78967806,9.377e-05,2]
[397228319,1765158652735,-500.0,9.377e-05,2]
[397228321,1765158652744,-500.0,9.377e-05,2]
[397228323,1765158652754,-991.15,9.377e-05,2]
[397228325,1765158652763,-502.10960418,9.377e-05,2]
[397228327,1765158652773,-501.1775459,9.377e-05,2]
[397228329,1765158652782,-938.13,9.377e-05,2]
[397228331,1765158652791,-9689.7227623,9.38e-05,2]
[397228333,1765158652801,-172.6193608,9.38e-05,2]
[397228335,1765158652811,-6101.393133,9.383e-05,2]
[397228337,1765158652820,-600.0,9.426e-05,2]
[397228339,1765158652830,-1784.53,9.433e-05,2]
[397228341,1765158652839,-204.5549045,9.433e-05,2]
[397228343,1765158652848,-1287.14,9.433e-05,2]
[397228345,1765158652858,-781.92,9.433e-05,2]
[397228347,1765158652867,-500.0,9.433e-05,2]
[397228349,1765158652878,-1624.75,9.433e-05,2]
[397228351,1765158652888,-500.0,9.433e-05,2]
[397228353,1765158652898,-5441.61,9.433e-05,2]
[397228355,1765158652907,-831.43,9.433e-05,2]
[397228357,1765158652917,-8774.01,9.433e-05,2]
[397228359,1765158652927,-1006.84,9.433e-05,2]
[397228361,1765158652937,-500.0,9.433e-05,2]
[397228363,1765158652947,-500.0,9.433e-05,2]
[397228365,1765158652960,-1284.75,9.433e-05,2]
[397228367,1765158652970,-500.0,9.434e-05,2]
[397228369,1765158652979,-500.0,9.434e-05,2]
[397228371,1765158652990,-500.0,9.434e-05,2]
[397228373,1765158653000,-531.32687651,9.434e-05,2]
[397228375,1765158653010,-500.0,9.434e-05,2]
[397228378,1765158653020,-500.0,9.434e-05,2]
[397228380,1765158653030,-500.0,9.434e-05,2]
[397228382,1765158653044,-500.0,9.434e-05,2]
[397228383,1765158653054,-660.29,9.434e-05,2]
[397228385,1765158653064,-508.59,9.434e-05,2]
[397228387,1765158653081,-500.0,9.434e-05,2]
[397228389,1765158653093,-681.49,9.434e-05,2]
[397228391,1765158653102,-500.0,9.434e-05,2]
[397228393,1765158653112,-500.0,9.434e-05,2]
[397228395,1765158653122,-676.7,9.434e-05,2]
[397228397,1765158653131,-500.0,9.434e-05,2]
[397228399,1765158653140,-2106.46,9.434e-05,2]
[397228401,1765158653150,-4053.3,9.434e-05,2]
[397228403,1765158653160,-830.15,9.434e-05,2]
[397228405,1765158653170,-500.0,9.434e-05,2]
[397228407,1765158653179,-831.32,9.434e-05,2]
[397228409,1765158653189,-500.0,9.434e-05,2]
[397228411,1765158653199,-2177.06,9.434e-05,2]
[397228413,1765158653208,-500.0,9.434e-05,2]
[397228415,1765158653218,-500.0,9.434e-05,2]
[397228417,1765158653227,-582.76,9.434e-05,2]
[397228419,1765158653236,-765.06,9.434e-05,2]
[397228421,1765158653246,-1312.37,9.434e-05,2]
[397228423,1765158653256,-780.67,9.434e-05,2]
[397228425,1765158653266,-7646.11,9.434e-05,2]
[397228427,1765158653275,-890.09,9.434e-05,2]
[397228429,1765158653285,-743.77,9.434e-05,2]
[397228430,1765158653294,-4516.2,9.434e-05,2]
[397228432,1765158653303,-1243.14,9.434e-05,2]
[397228434,1765158653312,-717.72,9.434e-05,2]
[397228436,1765158653321,-1378.21,9.434e-05,2]
[397228438,1765158653330,-500.0,9.434e-05,2]
[397228440,1765158653340,-1115.72,9.434e-05,2]
[397228442,1765158653349,-787.86,9.434e-05,2]
[397228444,1765158653359,-2770.97,9.434e-05,2]
[397228446,1765158653368,-507.5,9.434e-05,2]
[397228448,1765158653377,-1069.73,9.434e-05,2]
[397228450,1765158653387,-2758.21,9.434e-05,2]
[397228452,1765158653397,-1044.77,9.434e-05,2]
[397228454,1765158653406,-500.0,9.434e-05,2]
[397228456,1765158653415,-500.0,9.434e-05,2]
[397228457,1765158653423,-2087.68,9.434e-05,2]
[397228459,1765158653433,-1189.92,9.434e-05,2]
[397228461,1765158653442,-1134.66,9.434e-05,2]
[397228463,1765158653450,-500.0,9.434e-05,2]
[397228465,1765158653460,-647.28,9.435e-05,2]
[397228467,1765158653469,-632.75,9.435e-05,2]
[397228469,1765158653478,-500.0,9.435e-05,2]
[397228471,1765158653487,-674.68,9.435e-05,2]
[397228473,1765158653497,-500.0,9.435e-05,2]
[397228475,1765158653506,-607.54,9.435e-05,2]
[397228477,1765158653516,-587.25,9.435e-05,2]
[397228479,1765158653525,-656.75,9.435e-05,2]
[397228481,1765158653534,-500.0,9.435e-05,2]
[397228483,1765158653544,-2327.71,9.435e-05,2]
[397228485,1765158653553,-500.0,9.435e-05,2]
[397228487,1765158653562,-500.0,9.435e-05,2]
[397228489,1765158653572,-500.0,9.435e-05,2]
[397228491,1765158653581,-1503.36,9.435e-05,2]
[397228493,1765158653590,-646.26,9.435e-05,2]
[397228495,1765158653599,-500.0,9.435e-05,2]
[397228497,1765158653608,-500.0,9.435e-05,2]
[397228498,1765158653617,-500.0,9.435e-05,2]
[397228500,1765158653626,-510.39,9.435e-05,2]
[397228502,1765158653635,-1071.66,9.435e-05,2]
[397228504,1765158653646,-738.34,9.435e-05,2]
[397228506,1765158653655,-941.97,9.435e-05,2]
[397228508,1765158653664,-1025.99,9.435e-05,2]
[397228510,1765158653674,-641.18,9.435e-05,2]
[397228512,1765158653683,-1193.84,9.435e-05,2]
[397228514,1765158653698,-500.0,9.435e-05,2]
[397228516,1765158653707,-340.52390445,9.435e-05,2]
[397228518,1765158653717,-1371.66,9.435e-05,2]
[397228520,1765158653726,-1119.63,9.435e-05,2]
[397228522,1765158653736,-282.23629113,9.435e-05,2]
[397228524,1765158653745,-1353.14,9.435e-05,2]
[397228526,1765158653755,-2249.62,9.435e-05,2]
[397228528,1765158653764,-1666.34,9.435e-05,2]
[397228530,1765158653773,-500.0,9.435e-05,2]
[397228532,1765158653783,-853.92,9.435e-05,2]
[397228534,1765158653793,-1276.37,9.435e-05,2]
[397228536,1765158653802,-803.83,9.435e-05,2]
[397228538,1765158653811,-2249.24,9.435e-05,2]
[397228540,1765158653820,-607.96,9.435e-05,2]
[397228542,1765158653829,-519.73,9.435e-05,2]
[397228544,1765158653839,-591.6,9.435e-05,2]
[397228546,1765158653848,-1693.47,9.435e-05,2]
[397228548,1765158653858,-2246.33,9.435e-05,2]
[397228550,1765158653867,-3293.57,9.435e-05,2]
[397228552,1765158653876,-500.0,9.435e-05,2]
[397228554,1765158653885,-2048.68,9.435e-05,2]
[397228556,1765158653895,-2890.4,9.435e-05,2]
[397228558,1765158653905,-500.0,9.435e-05,2]
[397228560,1765158653914,-1160.48,9.435e-05,2]
[397228562,1765158653924,-613.52,9.435e-05,2]
[397228564,1765158653934,-500.0,9.435e-05,2]
[397228566,1765158653943,-2746.21,9.435e-05,2]
[397228567,1765158653955,-826.47,9.435e-05,2]
[397228569,1765158653967,-1473.57,9.435e-05,2]
[397228571,1765158653976,-1720.67,9.435e-05,2]
[397228573,1765158653985,-500.0,9.435e-05,2]
[397228575,1765158653995,-500.0,9.435e-05,2]
[397228577,1765158654005,-2219.23,9.435e-05,2]
[397228579,1765158654014,-6596.5,9.435e-05,2]
[397228581,1765158654023,-869.16,9.435e-05,2]
[397228583,1765158654033,-692.64,9.435e-05,2]
[397228585,1765158654043,-569.33,9.435e-05,2]
[397228587,1765158654053,-500.0,9.435e-05,2]
[397228589,1765158654062,-500.0,9.435e-05,2]
[397228591,1765158654072,-3739.99,9.435e-05,2]
[397228593,1765158654081,-945.56,9.435e-05,2]
[397228595,1765158654091,-627.61,9.435e-05,2]
[397228597,1765158654101,-500.0,9.435e-05,2]
[397228600,1765158654111,-928.54,9.435e-05,2]
[397228601,1765158654120,-1339.38,9.435e-05,2]
[397228603,1765158654130,-500.0,9.435e-05,2]
[397228606,1765158654140,-1370.77,9.435e-05,2]
[397228608,1765158654149,-1835.0,9.435e-05,2]
[397228610,1765158654159,-4313.4,9.435e-05,2]
[397228612,1765158654169,-1267.92,9.435e-05,2]
[397228614,1765158654179,-500.0,9.435e-05,2]
[397228616,1765158654188,-2122.9,9.435e-05,2]
[397228617,1765158654197,-500.0,9.435e-05,2]
[397228618,1765158654206,-687.96,9.435e-05,2]
[397228619,1765158654216,-1621.91,9.435e-05,2]
[397228620,1765158654225,-1099.74,9.435e-05,2]
[397228621,1765158654234,-14233.66,9.435e-05,2]
[397228622,1765158654243,-500.0,9.435e-05,2]
[397228623,1765158654252,-1165.84,9.435e-05,2]
[397228624,1765158654262,-1514.7,9.435e-05,2]
[397228625,1765158654270,-1526.38,9.435e-05,2]
[397228626,1765158654279,-1544.98,9.436e-05,2]
[397228627,1765158654288,-7520.16,9.436e-05,2]
[397228628,1765158654297,-2682.12,9.436e-05,2]
[397228629,1765158654307,-1736.26,9.436e-05,2]
[397228630,1765158654315,-1367.54,9.436e-05,2]
[397228631,1765158654325,-841.46,9.436e-05,2]
[397228632,1765158654334,-3317.64,9.436e-05,2]
[397228633,1765158654343,-2867.25,9.436e-05,2]
[397228634,1765158654352,-11776.86,9.436e-05,2]
[397228635,1765158654362,-24280.06,9.436e-05,2]
[397228636,1765158654371,-523.93,9.436e-05,2]
[397228637,1765158654380,-5359.29,9.436e-05,2]
[397228638,1765158654389,-739.75,9.436e-05,2]
[397228639,1765158654398,-2562.62,9.436e-05,2]
[397228640,1765158654407,-3304.28,9.436e-05,2]
[397228641,1765158654416,-500.0,9.436e-05,2]
[397228642,1765158654425,-5000.0,9.436e-05,2]
[397228643,1765158654435,-1553.39,9.436e-05,2]
[397228644,1765158654444,-500.0,9.436e-05,2]
[397228645,1765158654453,-1000.56,9.436e-05,2]
[397228646,1765158654462,-2266.14,9.436e-05,2]
[397228647,1765158654471,-4517.97,9.436e-05,2]
[397228648,1765158654480,-4308.07,9.436e-05,2]
[397228649,1765158654490,-1606.66,9.436e-05,2]
[397228650,1765158654499,-3293.93,9.436e-05,2]
[397228651,1765158654508,-378.41014694,9.465e-05,2]
[397228652,1765158654517,-167.13817111,9.489e-05,2]
[397228653,1765158654526,-3133.11287128,9.557e-05,2]
[397228655,1765158654536,-1109.24670889,9.588e-05,2]
[397228656,1765158654545,-500.0,9.601e-05,2]
[397228657,1765158654554,-520.85,9.601e-05,2]
[397228659,1765158654563,-500.0,9.601e-05,2]
[397228661,1765158654573,-500.0,9.601e-05,2]
[397228663,1765158654583,-500.0,9.601e-05,2]
[397228665,1765158654592,-500.0,9.601e-05,2]
[397228667,1765158654602,-625.55,9.601e-05,2]
[397228669,1765158654611,-500.0,9.601e-05,2]
[397228671,1765158654621,-500.0,9.601e-05,2]
[397228673,1765158654630,-500.0,9.601e-05,2]
[397228675,1765158654639,-500.0,9.601e-05,2]
[397228677,1765158654648,-500.0,9.601e-05,2]
[397228679,1765158654657,-789.62,9.601e-05,2]
[397228681,1765158654666,-1445.12,9.601e-05,2]
[397228683,1765158654675,-500.0,9.601e-05,2]
[397228685,1765158654685,-613.85,9.601e-05,2]
[397228687,1765158654694,-500.0,9.601e-05,2]
[397228689,1765158654703,-500.0,9.601e-05,2]
[397228691,1765158654712,-662.46,9.601e-05,2]
[397228693,1765158654721,-500.0,9.601e-05,2]
[397228695,1765158654730,-500.0,9.601e-05,2]
[397228697,1765158654740,-500.0,9.601e-05,2]
[397228699,1765158654750,-500.0,9.601e-05,2]
[397228701,1765158654759,-500.0,9.601e-05,2]
[397228703,1765158654767,-500.0,9.601e-05,2]
[397228704,1765158654776,-655.06,9.601e-05,2]
[397228706,1765158654786,-500.0,9.601e-05,2]
[397228708,1765158654796,-500.0,9.601e-05,2]
[397228710,1765158654805,-699.53,9.601e-05,2]
[397228712,1765158654814,-500.0,9.601e-05,2]
[397228714,1765158654823,-500.0,9.601e-05,2]
[397228716,1765158654834,-500.0,9.601e-05,2]
[397228718,1765158654843,-500.0,9.601e-05,2]
[397228721,1765158654854,-500.0,9.601e-05,2]
[397228722,1765158654863,-500.0,9.601e-05,2]
[397228724,1765158654872,-500.0,9.601e-05,2]
[397228727,1765158654883,-1444.36,9.601e-05,2]
[397228729,1765158654893,-1340.56,9.601e-05,2]
[397228730,1765158654903,-500.0,9.601e-05,2]
[397228732,1765158654912,-500.0,9.601e-05,2]
[397228734,1765158654922,-500.0,9.601e-05,2]
[397228736,1765158654934,-500.0,9.601e-05,2]
[397228739,1765158654944,-500.0,9.601e-05,2]
[397228740,1765158654960,-500.0,9.601e-05,2]
[397228742,1765158654970,-1337.79,9.601e-05,2]
[397228744,1765158654979,-500.0,9.601e-05,2]
[397228746,1765158654991,-500.0,9.601e-05,2]
[397228748,1765158655000,-660.99,9.601e-05,2]
[397228750,1765158655010,-511.55913926,9.601e-05,2]
[397228752,1765158655019,-618.52,9.601e-05,2]
[397228754,1765158655029,-500.0,9.601e-05,2]
[397228756,1765158655038,-608.64,9.601e-05,2]
[397228758,1765158655047,-646.36,9.601e-05,2]
[397228760,1765158655059,-1132.84,9.601e-05,2]
[397228762,1765158655068,-500.0,9.601e-05,2]
[397228764,1765158655078,-500.0,9.601e-05,2]
[397228766,1765158655087,-500.0,9.601e-05,2]
[397228768,1765158655097,-500.0,9.601e-05,2]
[397228770,1765158655106,-1509.55,9.601e-05,2]
[397228772,1765158655115,-500.0,9.601e-05,2]
[397228774,1765158655125,-689.07,9.601e-05,2]
[397228776,1765158655134,-500.0,9.601e-05,2]
[397228778,1765158655145,-500.0,9.601e-05,2]
[397228780,1765158655154,-1526.55,9.601e-05,2]
[397228782,1765158655164,-614.35,9.601e-05,2]
[397228784,1765158655173,-500.0,9.601e-05,2]
[397228786,1765158655183,-1012.63,9.601e-05,2]
[397228788,1765158655193,-500.0,9.601e-05,2]
[397228790,1765158655202,-774.21,9.601e-05,2]
[397228792,1765158655211,-500.0,9.601e-05,2]
[397228794,1765158655221,-500.0,9.601e-05,2]
[397228796,1765158655230,-2867.34,9.601e-05,2]
[397228798,1765158655239,-500.0,9.601e-05,2]
[397228800,1765158655248,-500.0,9.601e-05,2]
[397228802,1765158655258,-2057.3,9.601e-05,2]
[397228804,1765158655267,-500.0,9.601e-05,2]
[397228806,1765158655276,-500.0,9.601e-05,2]
[397228808,1765158655285,-708.46,9.601e-05,2]
[397228810,1765158655295,-500.0,9.601e-05,2]
[397228812,1765158655304,-226.47698186,9.601e-05,2]
[397228814,1765158655315,-765.9,9.601e-05,2]
[397228816,1765158655324,-1054.73,9.601e-05,2]
[397228818,1765158655333,-1171.87,9.601e-05,2]
[397228820,1765158655342,-500.0,9.601e-05,2]
[397228822,1765158655350,-500.0,9.601e-05,2]
[397228824,1765158655360,-500.0,9.601e-05,2]
[397228841,1765158655518,-628.32700696,9.601e-05,2]
[397228843,1765158655527,-804.66,9.601e-05,2]
[397228845,1765158655537,-653.73,9.601e-05,2]
[397228847,1765158655546,-500.0,9.601e-05,2]
[397228850,1765158655556,-757.76,9.601e-05,2]
[397228851,1765158655565,-507.35,9.601e-05,2]
[397228853,1765158655575,-649.29,9.601e-05,2]
[397228855,1765158655584,-433.16736382,9.601e-05,2]
[397228857,1765158655593,-630.53,9.601e-05,2]
[397228859,1765158655602,-500.0,9.601e-05,2]
[397228861,1765158655611,-957.87,9.601e-05,2]
[397228863,1765158655620,-500.0,9.601e-05,2]
[397228865,1765158655629,-500.0,9.601e-05,2]
[397228867,1765158655638,-786.93,9.601e-05,2]
[397228869,1765158655647,-1788.53,9.601e-05,2]
[397228871,1765158655656,-732.96,9.601e-05,2]
[397228873,1765158655669,-843.39,9.601e-05,2]
[397228875,1765158655679,-500.0,9.601e-05,2]
[397228877,1765158655688,-456.14675434,9.601e-05,2]
[397228879,1765158655698,-1568.24,9.601e-05,2]
[397228881,1765158655707,-401.31954289,9.601e-05,2]
[397228883,1765158655716,-500.0,9.601e-05,2]
[397228886,1765158655727,-500.0,9.601e-05,2]
[397228887,1765158655736,-500.0,9.601e-05,2]
[397228889,1765158655745,-2322.15,9.601e-05,2]
[397228891,1765158655754,-303.82169733,9.601e-05,2]
[397228893,1765158655764,-871.29,9.601e-05,2]
[397228895,1765158655774,-500.0,9.601e-05,2]
[397228897,1765158655783,-500.0,9.601e-05,2]
[397228899,1765158655793,-500.0,9.601e-05,2]
[397228902,1765158655803,-500.0,9.601e-05,2]
[397228903,1765158655813,-895.3,9.601e-05,2]
[397228906,1765158655822,-500.0,9.601e-05,2]
[397228907,1765158655831,-500.0,9.601e-05,2]
[397228909,1765158655841,-509.63,9.601e-05,2]
[397228911,1765158655850,-1129.99,9.601e-05,2]
[397228913,1765158655860,-500.0,9.601e-05,2]
[397228915,1765158655869,-1003.79,9.601e-05,2]
[397228917,1765158655879,-500.0,9.601e-05,2]
[397228919,1765158655889,-500.0,9.601e-05,2]
[397228921,1765158655898,-500.0,9.601e-05,2]
[397228924,1765158655908,-409.56908511,9.601e-05,2]
[397228925,1765158655917,-500.0,9.601e-05,2]
[397228927,1765158655927,-500.0,9.601e-05,2]
[397228930,1765158655937,-1240.81,9.601e-05,2]
[397228931,1765158655946,-750.88,9.601e-05,2]
[397228934,1765158655966,-500.0,9.601e-05,2]
[397228936,1765158655975,-688.27,9.601e-05,2]
[397228938,1765158655984,-500.0,9.601e-05,2]
[397228940,1765158655993,-500.0,9.601e-05,2]
[397228941,1765158656003,-500.0,9.601e-05,2]
[397228943,1765158656013,-500.0,9.601e-05,2]
[397228945,1765158656022,-500.0,9.601e-05,2]
[397228947,1765158656031,-755.81,9.601e-05,2]
[397228949,1765158656040,-716.68,9.601e-05,2]
[397228951,1765158656049,-500.0,9.601e-05,2]
[397228953,1765158656059,-500.0,9.601e-05,2]
[397228955,1765158656068,-500.0,9.601e-05,2]
[397228957,1765158656077,-1016.46,9.601e-05,2]
[397228959,1765158656086,-500.0,9.601e-05,2]
[397228961,1765158656095,-974.03,9.601e-05,2]
[397228963,1765158656106,-1068.22,9.601e-05,2]
[397228965,1765158656114,-500.0,9.601e-05,2]
[397228967,1765158656124,-500.0,9.601e-05,2]
[397228969,1765158656133,-500.0,9.601e-05,2]
[397228971,1765158656142,-500.0,9.601e-05,2]
[397228973,1765158656152,-482.96769117,9.601e-05,2]
[397228975,1765158656161,-528.68,9.601e-05,2]
[397228977,1765158656171,-4996.66,9.601e-05,2]
[397228979,1765158656181,-632.5,9.601e-05,2]
[397228981,1765158656190,-500.0,9.601e-05,2]
[397228983,1765158656201,-500.0,9.601e-05,2]
[397228985,1765158656210,-500.0,9.601e-05,2]
[397228987,1765158656219,-675.26,9.601e-05,2]
[397228989,1765158656229,-500.0,9.601e-05,2]
[397228991,1765158656238,-759.5,9.601e-05,2]
[397228993,1765158656249,-500.0,9.601e-05,2]
[397228995,1765158656258,-500.0,9.601e-05,2]
[397228997,1765158656267,-933.57,9.601e-05,2]
[397228999,1765158656276,-500.0,9.601e-05,2]
[397229001,1765158656286,-502.87532586,9.601e-05,2]
[397229003,1765158656295,-52063.64315454,9.601e-05,2]
[397229048,1765158656696,-1582.3070308,9.601e-05,2]
[397229050,1765158656707,-613.31929151,9.601e-05,2]
[397229066,1765158656895,-500.514083,8.337e-05,2]
[397229067,1765158656905,-521.74,9.327e-05,2]
[397229068,1765158656915,-500.0,9.434e-05,2]
[397229069,1765158656925,-37498.83052315,9.601e-05,2]
[397229070,1765158656934,-946.64,9.601e-05,2]
[397229072,1765158656944,-500.0,9.601e-05,2]
[397229074,1765158656956,-478.70642604,9.601e-05,2]
[397229076,1765158656966,-500.0,9.601e-05,2]
[397229078,1765158656975,-852.07,9.601e-05,2]
[397229080,1765158656984,-3981.46,9.601e-05,2]
[397229082,1765158656994,-500.0,9.601e-05,2]
[397229084,1765158657003,-500.0,9.601e-05,2]
[397229086,1765158657012,-500.0,9.601e-05,2]
[397229088,1765158657022,-575.78,9.601e-05,2]
[397229090,1765158657031,-939.83,9.601e-05,2]
[397229092,1765158657043,-500.0,9.601e-05,2]
[397229094,1765158657052,-2182.91,9.601e-05,2]
[397229096,1765158657061,-2735.74,9.601e-05,2]